fUST/lending_fUST_20240125
["ID","MTS","AMOUNT","RATE_DAILY","PERIOD"]
[312697978,1706155838467,-500.0,0.00030999,2]
[312697980,1706155838476,-314.4059647,0.00030999,2]
[312697982,1706155838485,-500.0,0.00030999,2]
[312697984,1706155838494,-500.0,0.00030999,2]
[312697986,1706155838504,-500.0,0.00030999,2]
[312697988,1706155838513,-500.0,0.00030999,2]
[312697989,1706155838522,-619.33461115,0.00030999,2]
[312697991,1706155838531,-500.0,0.00030999,2]
[312697993,1706155838540,-500.0,0.00030999,2]
[312697995,1706155838549,-500.0,0.00030999,2]
[312697997,1706155838559,-586.18515929,0.00030999,2]
[312698000,1706155838568,-357.65357048,0.00030999,2]
[312698001,1706155838577,-500.0,0.00030999,2]
[312698003,1706155838585,-500.0,0.00030999,2]
[312698005,1706155838594,-500.0,0.00030999,2]
[312698007,1706155838603,-500.0,0.00030999,2]
[312698009,1706155838612,-500.0,0.00030999,2]
[312698011,1706155838621,-500.0,0.00030999,2]
[312698013,1706155838630,-500.0,0.00030999,2]
[312698016,1706155838643,-500.0,0.00030999,2]
[312698018,1706155838653,-500.0,0.00030999,2]
[312698020,1706155838662,-500.0,0.00030999,2]
[312698022,1706155838670,-461.67197611,0.00030999,2]
[312698024,1706155838680,-500.0,0.00030999,2]
[312698026,1706155838689,-500.0,0.00030999,2]
[312698028,1706155838698,-500.0,0.00030999,2]
[312698030,1706155838707,-500.0,0.00030999,2]
[312698032,1706155838716,-500.0,0.00030999,2]
[312698033,1706155838725,-500.0,0.00030999,2]
[312698035,1706155838734,-500.0,0.00030999,2]
[312698037,1706155838744,-500.0,0.00030999,2]
[312698039,1706155838753,-500.0,0.00030999,2]
[312698041,1706155838761,-500.0,0.00030999,2]
[312698043,1706155838771,-500.0,0.00030999,2]
[312698045,1706155838780,-500.0,0.00030999,2]
[312698047,1706155838788,-500.0,0.00030999,2]
[312698049,1706155838797,-500.0,0.00030999,2]
[312698051,1706155838807,-500.0,0.00030999,2]
[312698053,1706155838816,-480.43973718,0.00030999,2]
[312698055,1706155838825,-500.0,0.00030999,2]
[312698057,1706155838834,-500.0,0.00030999,2]
[312698059,1706155838843,-500.0,0.00030999,2]
[312698061,1706155838852,-500.0,0.00030999,2]
[312698063,1706155838861,-500.0,0.00030999,2]
[312698065,1706155838870,-500.0,0.00030999,2]
[312698067,1706155838879,-500.0,0.00030999,2]
[312698069,1706155838888,-500.0,0.00030999,2]
[312698071,1706155838897,-500.0,0.00030999,2]
[312698073,1706155838906,-500.0,0.00030999,2]
[312698075,1706155838916,-500.0,0.00030999,2]
[312698077,1706155838925,-500.0,0.00030999,2]
[312698079,1706155838934,-499.99999999,0.00030999,2]
[312698081,1706155838944,-103174.65969926,0.00031,2]
[312698083,1706155838952,-161.35279164,0.00031,4]
[312698085,1706155838961,-652.40169729,0.00031865,2]
[312698087,1706155838970,-681.25029016,0.00032,3]
[312698089,1706155838979,-7137.52339606,0.00032,15]
[312698091,1706155838988,-163.35215498,0.00032598,2]
[312698092,1706155838997,-466.01364828,0.00033,3]
[312698094,1706155839006,-228.50754628,0.00033,2]
[312698096,1706155839014,-178469.44118266,0.00033,10]
[312698099,1706155839028,-34602.58568095,0.00033,10]
[312698101,1706155839039,-24900.0,0.00034159,2]
[312698103,1706155839051,-151.0,0.00034221,2]
[312698105,1706155839060,-334.39476696,0.00035,4]
[312698107,1706155839071,-151.0,0.00035443,4]
[312698109,1706155839080,-1844.08048926,0.000355,14]
[312698110,1706155839090,-154.87609912,0.00036,4]
[312698113,1706155839100,-151.0,0.00036665,4]
[312698115,1706155839109,-2818.95590696,0.00037785,2]
[312698117,1706155839119,-151.0,0.00037887,4]
[312698118,1706155839128,-1274.93866513,0.00037989,2]
[312698121,1706155839139,-1555.77557102,0.00038,3]
[312698123,1706155839148,-304.87357425,0.00038,4]
[312698124,1706155839157,-154.84515485,0.00038,4]
[312698126,1706155839167,-687.23319626,0.00038,4]
[312698128,1706155839176,-344.25808007,0.00038,4]
[312698131,1706155839185,-155.69807753,0.00038,4]
[312698133,1706155839195,-834.30991439,0.00038,4]
[312698134,1706155839205,-13963.52852552,0.00038,10]
[312698137,1706155839214,-2045.63213632,0.00038,4]
[312698138,1706155839223,-150.0,0.000383,10]
[312698141,1706155839233,-2141.66336163,0.000385,4]
[312698142,1706155839242,-19027.36663834,0.00038554,5]
[312698144,1706155839251,-155.05521662,0.00039,4]
[312698146,1706155839260,-245.50245193,0.00039,30]
[312698158,1706155839269,-151.0,0.00039109,4]
[312698160,1706155839364,-3000.0,0.000395,120]
[312698162,1706155839374,-151.0,0.000395,2]
[312698164,1706155839383,-151.0,0.000395,2]
[312698166,1706155839392,-151.0,0.000395,2]
[312698168,1706155839401,-219.221412,0.000395,2]
[312698170,1706155839410,-743.886184,0.000395,2]
[312698172,1706155839419,-743.886184,0.000395,2]
[312698174,1706155839428,-6331.290907,0.000395,2]
[312698176,1706155839437,-6331.290907,0.000395,2]
[312698178,1706155839446,-151.0,0.000395,2]
[312698180,1706155839456,-151.0,0.000395,2]
[312698182,1706155839465,-300.0,0.000398,21]
[312698184,1706155839475,-300.0,0.0003988,2]
[312698186,1706155839484,-4041.39742033,0.0003999,4]
[312698188,1706155839493,-645.38497523,0.0004,4]
[312698190,1706155839502,-151.0,0.00040331,21]
[312698192,1706155839511,-500.0,0.00041095,2]
[312698194,1706155839520,-250.0,0.00041095,7]
[312698196,1706155839529,-170.382306,0.00041096,2]
[312698198,1706155839538,-160.5089,0.00041118,7]
[312698200,1706155839547,-303.999376,0.000413,21]
[312698202,1706155839556,-156.11791069,0.0004134,30]
[312698204,1706155839565,-151.0,0.00041553,21]
[312698206,1706155839573,-472.45357065,0.00042184,4]
[312698208,1706155839583,-20058.34570465,0.00042186,2]
[312698209,1706155839592,-688.90463332,0.00042318,4]
[312698211,1706155839601,-545.55720302,0.00042318,4]
[312698213,1706155839610,-318.12789572,0.00042318,4]
[312698215,1706155839619,-364.56906564,0.00042318,4]
[312698217,1706155839629,-304.43825383,0.00042319,4]
[312698219,1706155839638,-191.53420171,0.0004232,31]
[312698221,1706155839647,-500.0,0.0004232,31]
[312698224,1706155839657,-384.76724431,0.0004232,31]
[312698225,1706155839666,-486.35211951,0.0004232,31]
[312698227,1706155839676,-500.0,0.0004232,31]
[312698230,1706155839685,-500.0,0.0004232,31]
[312698232,1706155839695,-500.0,0.0004232,31]
[312698234,1706155839704,-500.0,0.0004232,31]
[312698236,1706155839713,-500.0,0.0004232,31]
[312698238,1706155839722,-500.0,0.0004232,31]
[312698240,1706155839731,-500.0,0.0004232,31]
[312698242,1706155839740,-500.0,0.0004232,31]
[312698243,1706155839749,-241.91691878,0.0004232,31]
[312698245,1706155839758,-500.0,0.0004232,31]
[312698247,1706155839767,-353.8936063,0.0004232,31]
[312698249,1706155839776,-500.0,0.0004232,31]
[312698251,1706155839785,-500.0,0.0004232,31]
[312698253,1706155839795,-266.19433591,0.0004232,31]
[312698255,1706155839804,-500.0,0.0004232,31]
[312698257,1706155839813,-324.14828969,0.0004232,31]
[312698259,1706155839822,-500.0,0.0004232,31]
[312698261,1706155839832,-500.0,0.0004232,31]
[312698263,1706155839842,-500.0,0.0004232,31]
[312698265,1706155839851,-500.0,0.0004232,31]
[312698267,1706155839860,-500.0,0.0004232,31]
[312698269,1706155839869,-500.0,0.0004232,31]
[312698271,1706155839879,-500.0,0.0004232,31]
[312698273,1706155839888,-406783.85879715,0.00042321,7]
[312698276,1706155839900,-31912.9415483,0.00042321,7]
[312698624,1706155846382,-168.09052939,0.00028604,2]
[312698625,1706155846392,-156.1445642,0.00036785,2]
[312698626,1706155846401,-59.53425465,0.00042312,3]
[312698777,1706158238560,-154.93802479,0.00022695,2]
[312698779,1706158238570,-154.93802479,0.00022695,4]
[312698781,1706158238579,-73.76291062,0.00022696,2]
[312698815,1706158241614,-605.27013861,0.00022696,2]
[312698816,1706158241624,-1198.61763963,0.00022697,2]
[312698817,1706158241633,-850.73963902,0.00022698,2]
[312698818,1706158241642,-265.58036127,0.00022698,2]
[312698819,1706158241651,-1046.49558076,0.00022698,2]
[312698820,1706158241660,-166.222775,0.00022699,2]
[312698821,1706158241669,-295.01713766,0.00022819,2]
[312698822,1706158241679,-166.6666661,0.00022821,2]
[312698823,1706158241688,-2837.22954685,0.00023963,2]
[312698824,1706158241697,-243.4528969,0.00023973,2]
[312698825,1706158241706,-684.5801402,0.00023973,2]
[312698826,1706158241716,-24900.0,0.0002404,2]
[312698827,1706158241725,-164.719864,0.00024654,2]
[312698828,1706158241735,-498.66582765,0.00026442,5]
[312698829,1706158241743,-200.0,0.00026443,15]
[312698830,1706158241753,-7303.6,0.00027,2]
[312698831,1706158241766,-10543.69,0.00027541,3]
[312698832,1706158241775,-2074.94658461,0.00027549,2]
[312698833,1706158241784,-470.87385711,0.00027549,2]
[312698834,1706158241793,-170.0,0.00027549,2]
[312698835,1706158241803,-4725.91421399,0.0002755,2]
[312698836,1706158241812,-52429.74127432,0.00027551,2]
[312698837,1706158241821,-947.31722945,0.00027552,3]
[312698838,1706158241831,-3691.39294152,0.00027552,3]
[312698839,1706158241840,-12502.04739008,0.00027552,3]
[312698840,1706158241850,-10148.58956639,0.00028998,2]
[312698841,1706158241859,-280.0,0.00029088,15]
[312698842,1706158241868,-245.03812436,0.0003,4]
[312698843,1706158241877,-154.93802479,0.0003,4]
[312698844,1706158241886,-157.894736,0.00030137,2]
[312698845,1706158241895,-391.0,0.00031997,15]
[312698846,1706158241904,-228.50754628,0.00033,2]
[312698847,1706158241913,-11164.24208709,0.00035,4]
[312698848,1706158241923,-5000.0,0.00035192,7]
[312698849,1706158241933,-237.63369757,0.00036782,4]
[312698850,1706158241942,-331.02777896,0.00036783,4]
[312698851,1706158241951,-179.33684104,0.00036783,4]
[312698852,1706158241960,-4597.22154866,0.00036783,4]
[312698853,1706158241969,-177.57601591,0.00036784,4]
[312698854,1706158241978,-155.36225596,0.00036784,4]
[312698855,1706158241987,-2147.50028627,0.000385,4]
[312698856,1706158241996,-309.66775956,0.00039,4]
[312698857,1706158242006,-5000.0,0.00039012,7]
[312698858,1706158242015,-5000.0,0.00039012,7]
[312698859,1706158242024,-150.41546657,0.00039326,2]
[312698860,1706158242033,-1064.72752597,0.000395,120]
[312698861,1706158242043,-4041.39742033,0.0003999,4]
[312698862,1706158242052,-2190.0,0.0004,7]
[312698863,1706158242061,-14015.87085813,0.00040196,5]
[312698864,1706158242071,-789.53541572,0.00040221,2]
[312698865,1706158242080,-777.0,0.0004062,2]
[312698866,1706158242090,-1004.131547,0.00041,120]
[312698867,1706158242099,-500.0,0.00041095,2]
[312698868,1706158242108,-158.21816162,0.00041506,30]
[312698869,1706158242117,-10.38563109,0.00041899,31]
[312698890,1706158244497,-596.4668107,0.00041899,31]
[312698891,1706158244509,-346.59273457,0.00041899,31]
[312698892,1706158244519,-206.40595228,0.00041899,31]
[312698893,1706158244528,-500.0,0.00041899,31]
[312698894,1706158244538,-500.0,0.00041899,31]
[312698895,1706158244547,-398.04397372,0.00041899,31]
[312698896,1706158244557,-16432.43519393,0.000419,2]
[312698907,1706158246806,-191807.65231542,0.000419,2]
[312698908,1706158246815,-158.21816162,0.00041916,30]
[312698909,1706158246823,-232.8162,0.00041975,2]
[312698910,1706158246834,-18315.05461794,0.00042,30]
[312698911,1706158246843,-1003.11580247,0.00042,14]
[312698912,1706158246852,-167.00344165,0.00042081,30]
[312698913,1706158246861,-1462.09112443,0.00042299,2]
[312698914,1706158246871,-711.926868,0.000423,7]
[312698915,1706158246880,-164.098248,0.000423,2]
[312698916,1706158246890,-862.86802162,0.0004231,10]
[312698917,1706158246899,-429.66873294,0.00042312,4]
[312698918,1706158246908,-2805.33057178,0.00042312,2]
[312698919,1706158246919,-1209.18072846,0.00042312,2]
[312698920,1706158246929,-3202.15663334,0.00042312,4]
[312698921,1706158246938,-785.40936716,0.00042312,4]
[312698922,1706158246948,-519.66047984,0.00042312,4]
[312698923,1706158246957,-463.84968646,0.00042312,4]
[312698924,1706158246966,-158.21816162,0.00042357,30]
[312698925,1706158246975,-2279.24526311,0.000425,20]
[312698926,1706158246986,-4897.219849,0.000425,30]
[312698927,1706158246995,-153.681504,0.00042948,21]
[312698928,1706158247005,-164.2523,0.00043081,30]
[312698929,1706158247014,-158.21816162,0.00043174,30]
[312698930,1706158247023,-158.21816162,0.00043228,30]
[312698931,1706158247032,-158.21816162,0.00043297,30]
[312698932,1706158247041,-3493.89919508,0.00043706,4]
[312698933,1706158247050,-200.0,0.000439,4]
[312698934,1706158247059,-51267.62566,0.00043999,7]
[312698935,1706158247068,-2452.12131664,0.00044,10]
[312698936,1706158247077,-1000.0,0.00044,7]
[312698937,1706158247086,-1000.0,0.00044,7]
[312698938,1706158247095,-1000.0,0.00044,7]
[312698939,1706158247104,-1000.0,0.00044,7]
[312698940,1706158247113,-1000.0,0.00044,7]
[312698941,1706158247122,-639.3858064,0.00044,7]
[312698942,1706158247131,-2002.0,0.00044,30]
[312698943,1706158247140,-853.11973773,0.00044081,2]
[312698944,1706158247149,-250.0,0.00044398,7]
[312698945,1706158247158,-6362.60577504,0.000444,30]
[312698946,1706158247167,-151.0,0.000444,7]
[312698947,1706158247176,-151.0,0.000444,7]
[312698948,1706158247185,-669.497565,0.000444,7]
[312698949,1706158247195,-669.497565,0.000444,7]
[312698950,1706158247204,-151.599985,0.000444,7]
[312698951,1706158247213,-151.0,0.000444,7]
[312698952,1706158247222,-1008.398264,0.000445,41]
[312698953,1706158247231,-2783.39018401,0.00044548,5]
[312698954,1706158247241,-183.00882655,0.00044549,2]
[312698955,1706158247250,-647.40832734,0.00044598,4]
[312698956,1706158247261,-750.92424264,0.00044598,2]
[312698957,1706158247271,-173.72308377,0.00044598,4]
[312698958,1706158247280,-244.25363051,0.00044598,4]
[312698959,1706158247289,-310.26610182,0.00044598,4]
[312698960,1706158247377,-201.51423446,0.00044598,30]
[312698961,1706158247387,-233.00682414,0.00044599,3]
[312698962,1706158247396,-669.497565,0.00044599,7]
[312698963,1706158247406,-669.497565,0.00044599,7]
[312698964,1706158247415,-154.560826,0.00044599,7]
[312698965,1706158247425,-5413.253726,0.00044599,7]
[312698966,1706158247434,-5413.253726,0.00044599,7]
[312698967,1706158247444,-179.44389491,0.00044599,2]
[312698968,1706158247454,-231.52226558,0.00044599,4]
[312698969,1706158247463,-4747.04810414,0.00044599,2]
[312698970,1706158247473,-43203.72593151,0.00044599,4]
[312698971,1706158247482,-69999.1999992,0.000446,2]
[312698972,1706158247491,-151.0,0.000446,7]
[312698973,1706158247501,-151.0,0.000446,7]
[312698974,1706158247511,-151.0,0.000446,7]
[312698975,1706158247520,-151.0,0.000446,7]
[312698976,1706158247529,-151.0,0.000446,7]
[312698977,1706158247538,-151.0,0.000446,7]
[312698978,1706158247547,-151.0,0.000446,7]
[312698979,1706158247556,-151.0,0.000446,7]
[312698980,1706158247565,-151.0,0.000446,7]
[312698981,1706158247574,-669.497565,0.000446,7]
[312698982,1706158247583,-669.497565,0.000446,7]
[312698983,1706158247593,-5413.253726,0.000446,7]
[312698984,1706158247602,-5413.253726,0.000446,7]
[312698985,1706158247611,-315.83500787,0.00044621,5]
[312698986,1706158247621,-271.63188504,0.00044663,4]
[312698987,1706158247630,-1744.7858295,0.00044663,4]
[312698988,1706158247638,-290.18991434,0.00044663,4]
[312698989,1706158247647,-229.82325492,0.00044663,4]
[312698990,1706158247657,-11346.14787859,0.00044663,4]
[312698991,1706158247666,-327.38963306,0.00044664,4]
[312698992,1706158247675,-155.35497018,0.00044664,4]
[312698993,1706158247684,-1039.66908668,0.00044664,4]
[312698994,1706158247693,-645.92095854,0.00044664,4]
[312698995,1706158247703,-285.29749616,0.00044664,4]
[312698996,1706158247712,-212.02726052,0.00044664,4]
[312698997,1706158247721,-7417.86745003,0.00044664,4]
[312698998,1706158247731,-1257.13240071,0.00044664,4]
[312698999,1706158247740,-155.43712027,0.00044665,4]
[312699000,1706158247749,-155.17005011,0.00044665,4]
[312699001,1706158247762,-330.56999213,0.00044665,4]
[312699002,1706158247772,-44610.32431582,0.000447,7]
[312699003,1706158247782,-151.0,0.000447,7]
[312699004,1706158247791,-151.0,0.000447,7]
[312699005,1706158247800,-151.0,0.000447,7]
[312699006,1706158247810,-151.0,0.000447,7]
[312699007,1706158247819,-151.0,0.000447,7]
[312699008,1706158247828,-151.0,0.000447,7]
[312699009,1706158247838,-151.661833,0.000447,7]
[312699010,1706158247848,-151.0,0.000447,7]
[312699011,1706158247858,-195.084018,0.000447,7]
[312699012,1706158247868,-669.497565,0.000447,7]
[312699013,1706158247878,-669.497565,0.000447,7]
[312699014,1706158247887,-245.161206,0.000447,21]
[312699015,1706158247898,-245.402279,0.000447,21]
[312699016,1706158247907,-5413.253726,0.000447,7]
[312699017,1706158247916,-5413.253726,0.000447,7]
[312699018,1706158247925,-151.0,0.00044711,7]
[312699019,1706158247936,-151.0,0.00044711,7]
[312699020,1706158247945,-151.0,0.00044711,7]
[312699021,1706158247955,-151.0,0.00044711,7]
[312699022,1706158247965,-151.0,0.00044711,7]
[312699023,1706158247974,-151.0,0.00044711,7]
[312699024,1706158247983,-151.0,0.00044711,7]
[312699025,1706158247992,-151.0,0.00044711,7]
[312699026,1706158248001,-151.0,0.00044711,7]
[312699027,1706158248012,-264.425912,0.00044711,7]
[312699028,1706158248021,-151.0,0.00044711,7]
[312699029,1706158248030,-151.0,0.00044711,7]
[312699030,1706158248040,-151.0,0.00044711,7]
[312699031,1706158248049,-151.0,0.00044711,7]
[312699032,1706158248059,-151.0,0.00044711,7]
[312699033,1706158248068,-151.0,0.00044711,7]
[312699034,1706158248077,-238.340744,0.00044711,7]
[312699035,1706158248086,-372.57507564,0.0004472,60]
[312699036,1706158248095,-208.43662264,0.0004472,60]
[312699037,1706158248104,-164.90024756,0.0004472,60]
[312699038,1706158248114,-556.16808189,0.0004472,60]
[312699039,1706158248123,-529.85830078,0.0004472,60]
[312699040,1706158248132,-500.0,0.0004472,60]
[312699041,1706158248141,-500.0,0.0004472,60]
[312699042,1706158248151,-397.24448691,0.0004472,60]
[312699043,1706158248161,-500.0,0.0004472,60]
[312699044,1706158248170,-151.0,0.0004472,7]
[312699045,1706158248179,-285.124514,0.0004472,7]
[312699046,1706158248188,-151.555783,0.0004472,7]
[312699047,1706158248197,-151.0,0.0004472,7]
[312699048,1706158248207,-151.0,0.0004472,7]
[312699049,1706158248216,-151.0,0.0004472,7]
[312699050,1706158248225,-151.0,0.0004472,7]
[312699051,1706158248234,-151.0,0.0004472,7]
[312699052,1706158248244,-151.0,0.0004472,7]
[312699053,1706158248254,-151.0,0.0004472,7]
[312699054,1706158248262,-151.0,0.0004472,7]
[312699055,1706158248271,-151.0,0.00044721,7]
[312699056,1706158248281,-151.0,0.00044721,7]
[312699057,1706158248290,-151.0,0.00044721,7]
[312699058,1706158248299,-151.0,0.00044721,7]
[312699059,1706158248309,-151.0,0.00044721,7]
[312699060,1706158248318,-669.497565,0.00044721,7]
[312699061,1706158248327,-669.497565,0.00044721,7]
[312699062,1706158248336,-669.497565,0.00044721,7]
[312699063,1706158248345,-669.497565,0.00044721,7]
[312699064,1706158248355,-669.497565,0.00044721,7]
[312699065,1706158248364,-669.497565,0.00044721,7]
[312699066,1706158248374,-669.497565,0.00044721,7]
[312699067,1706158248384,-669.497565,0.00044721,7]
[312699068,1706158248394,-669.497565,0.00044721,7]
[312699069,1706158248404,-669.497565,0.00044721,7]
[312699070,1706158248414,-669.497565,0.00044721,7]
[312699071,1706158248423,-669.497569,0.00044721,7]
[312699072,1706158248433,-5413.253726,0.00044721,7]
[312699073,1706158248443,-5413.253726,0.00044721,7]
[312699074,1706158248452,-5413.253726,0.00044721,7]
[312699075,1706158248461,-5413.253726,0.00044721,7]
[312699076,1706158248470,-5413.253726,0.00044721,7]
[312699077,1706158248479,-5413.253726,0.00044721,7]
[312699078,1706158248488,-5413.253726,0.00044721,7]
[312699079,1706158248497,-5413.253726,0.00044721,7]
[312699080,1706158248507,-5413.253726,0.00044721,7]
[312699081,1706158248516,-5413.253726,0.00044721,7]
[312699082,1706158248525,-5413.253726,0.00044721,7]
[312699083,1706158248534,-5413.253726,0.00044721,7]
[312699084,1706158248543,-5413.253726,0.00044721,7]
[312699085,1706158248553,-5413.253722,0.00044721,7]
[312699086,1706158248562,-320306.70978409,0.00044721,7]
[312699087,1706158248571,-100099.999999,0.00044721,2]
[312699088,1706158248581,-6316.08777154,0.00044721,2]
[312699089,1706158248590,-607316.52631019,0.00044721,7]
[312699101,1706158973955,200.0,0.00021744,7]
[312699152,1706159431722,-154.90705577,0.00019727,3]
[312699153,1706159431733,-154.90705577,0.00019728,2]
[312699154,1706159431742,-238.40119467,0.00019728,2]
[312699155,1706159431780,-97.04754566,0.00019728,2]
[312699156,1706159431789,-154.90705577,0.00019728,2]
[312699157,1706159431798,-616.99357783,0.00019729,2]
[312699158,1706159431807,-161.10100209,0.0001973,2]
[312699159,1706159431816,-154.90705577,0.0001973,2]
[312699160,1706159431825,-2039.84982742,0.0001973,2]
[312699161,1706159431834,-20881.31059739,0.00019768,2]
[312699162,1706159431843,-24900.0,0.00019769,2]
[312699163,1706159431852,-155.30993011,0.0002,2]
[312699164,1706159431862,-679.03304923,0.0002,2]
[312699165,1706159431871,-1198.61763963,0.0002,2]
[312699166,1706159431881,-850.73963902,0.0002,2]
[312699167,1706159431890,-1409.55315888,0.00020578,2]
[312699168,1706159431900,-1495.07926718,0.00020788,2]
[312699169,1706159431909,-286.91674003,0.00020893,2]
[312699170,1706159431918,-164.148459,0.000209,2]
[312699171,1706159431928,-9419.39,0.00020978,3]
[312699172,1706159431937,-8178.15009445,0.00020988,3]
[312699200,1706159437714,-840.97463869,0.00020988,3]
[312699207,1706159437773,-4544.80526686,0.00020988,3]
[312699209,1706159437782,-11303.27,0.00020988,3]
[312699210,1706159437791,-309.79863785,0.00020997,2]
[312699212,1706159437800,-2074.94658461,0.00020998,2]
[312699214,1706159437810,-2109.88863712,0.00020998,2]
[312699216,1706159437818,-470.87385711,0.00020998,2]
[312699218,1706159437829,-155.31303741,0.00020998,2]
[312699220,1706159437838,-713.40763616,0.00020998,2]
[312699222,1706159437847,-261.5327114,0.00020998,2]
[312699224,1706159437857,-154.98885282,0.00020998,2]
[312699226,1706159437866,-8331.07071199,0.00020998,2]
[312699228,1706159437875,-155.46749464,0.00020998,2]
[312699230,1706159437884,-156.77762867,0.00020998,2]
[312699232,1706159437893,-3753.74646613,0.00020998,2]
[312699234,1706159437902,-522.77072783,0.00020998,2]
[312699236,1706159437911,-155.18012711,0.00020998,2]
[312699238,1706159437919,-1138.97290225,0.00020998,2]
[312699241,1706159437972,-903.88612378,0.00020998,2]
[312699242,1706159437982,-1245.23746754,0.00020998,2]
[312699244,1706159437991,-155.28114559,0.00020998,2]
[312699246,1706159438001,-155.11023675,0.00020998,2]
[312699248,1706159438011,-710.43206989,0.00020998,2]
[312699250,1706159438019,-1407.90685393,0.00020998,2]
[312699252,1706159438030,-1583.76719664,0.00020998,2]
[312699254,1706159438039,-155.21204316,0.00020999,2]
[312699256,1706159438048,-681.6348958,0.00020999,2]
[312699258,1706159438057,-3138.51110101,0.00020999,2]
[312699261,1706159438072,-33836.23702035,0.00020999,2]
[312699263,1706159438082,-233.10473746,0.00021,2]
[312699265,1706159438091,-30965.39388017,0.00021,2]
[312699267,1706159438100,-41150.04232227,0.00021,2]
[312699269,1706159438109,-194.43828907,0.00021,2]
[312699271,1706159438119,-9865.3118033,0.00021,2]
[312699274,1706159438135,-166.666666,0.00021918,2]
[312699276,1706159438152,-3986.88867207,0.00022,2]
[312699278,1706159438162,-426.10577832,0.00022,2]
[312699280,1706159438171,-303.48339143,0.00022696,2]
[312699282,1706159438182,-300.0,0.00022696,2]
[312699284,1706159438191,-1327.61014966,0.00023,2]
[312699286,1706159438201,-166.666666,0.000232,2]
[312699287,1706159438211,-7708.77400811,0.00024,2]
[312699288,1706159438221,-166.666666,0.00024482,2]
[312699290,1706159438231,-498.66582765,0.0002496,5]
[312699292,1706159438240,-2044.83366883,0.00025,2]
[312699294,1706159438250,-155.27081755,0.00025,2]
[312699296,1706159438259,-682.42721753,0.00025,2]
[312699298,1706159438268,-155.24086416,0.00025,2]
[312699299,1706159438278,-155.0884766,0.00025,2]
[312699302,1706159438288,-4108.74248763,0.00025,2]
[312699317,1706159438424,-500.0,0.00027714,2]
[312699319,1706159438434,-500.0,0.00027714,2]
[312699321,1706159438443,-476.78457971,0.00027714,2]
[312699323,1706159438452,-500.0,0.00027714,2]
[312699325,1706159438461,-500.0,0.00027714,2]
[312699327,1706159438470,-500.0,0.00027714,2]
[312699329,1706159438479,-500.0,0.00027714,2]
[312699331,1706159438487,-500.0,0.00027714,2]
[312699333,1706159438497,-500.0,0.00027714,2]
[312699335,1706159438506,-500.0,0.00027714,2]
[312699337,1706159438515,-500.0,0.00027714,2]
[312699338,1706159438524,-500.0,0.00027714,2]
[312699340,1706159438533,-500.0,0.00027714,2]
[312699342,1706159438543,-500.0,0.00027714,2]
[312699344,1706159438552,-500.0,0.00027714,2]
[312699346,1706159438561,-500.0,0.00027714,2]
[312699348,1706159438571,-402.50249532,0.00027714,2]
[312699350,1706159438580,-500.0,0.00027714,2]
[312699352,1706159438589,-500.0,0.00027714,2]
[312699354,1706159438598,-500.0,0.00027714,2]
[312699356,1706159438608,-500.0,0.00027714,2]
[312699358,1706159438618,-500.0,0.00027714,2]
[312699360,1706159438626,-500.0,0.00027714,2]
[312699362,1706159438635,-500.0,0.00027714,2]
[312699364,1706159438644,-500.0,0.00027714,2]
[312699366,1706159438653,-500.0,0.00027714,2]
[312699368,1706159438663,-500.0,0.00027714,2]
[312699370,1706159438672,-500.0,0.00027714,2]
[312699372,1706159438681,-500.0,0.00027714,2]
[312699374,1706159438690,-500.0,0.00027714,2]
[312699376,1706159438699,-500.0,0.00027714,2]